bitfinex-derivatives/quotes_BTCF0:USTF0_20241103
["timestamp","ask_amount","ask_price","bid_price","bid_amount"]
[1730592993452,0.0319,69374.0,69372.0,0.05739075]
[1730592993658,0.072093,69372.0,69371.0,0.19266857]
[1730592994566,0.072093,69372.0,69371.0,0.13527782]
[1730593000299,0.59548451,69372.0,69371.0,0.17830371]
[1730593000568,0.59548451,69372.0,69371.0,0.13527782]
[1730593000755,0.504533,69372.0,69371.0,0.13527782]
[1730593000956,0.865333,69372.0,69371.0,0.13527782]
[1730593003251,0.432893,69372.0,69371.0,0.13527782]
[1730593003457,0.865333,69372.0,69371.0,0.13527782]
[1730593004261,0.95628451,69372.0,69371.0,0.13527782]
[1730593006965,0.59548451,69372.0,69371.0,0.13527782]
[1730593007155,0.52384451,69372.0,69371.0,0.13527782]
[1730593008160,0.432893,69372.0,69371.0,0.13527782]
[1730593025288,0.072097,69368.0,69367.0,0.04302589]
[1730593025524,0.072097,69368.0,69367.0,0.09095151]
[1730593025984,0.072097,69368.0,69367.0,0.12395151]
[1730593026877,0.072097,69368.0,69367.0,0.033]
[1730593028086,0.072102,69363.0,69362.0,0.0331]
[1730593031289,0.072102,69363.0,69362.0,0.18341648]
[1730593038594,0.072101,69365.0,69362.0,0.27189406]
[1730593038786,0.072097,69369.0,69366.0,0.072099]
[1730593038987,0.3608,69376.0,69369.0,0.072096]
[1730593038988,0.072093,69372.0,69369.0,0.072096]
[1730593039304,0.072094,69371.0,69370.0,0.0304]
[1730593043400,0.072094,69371.0,69367.0,0.07178349]
[1730593043595,0.072094,69371.0,69366.0,0.07178349]
[1730593043596,0.09095151,69369.0,69366.0,0.07178349]
[1730593043795,0.072097,69368.0,69367.0,0.07178349]
[1730593044192,0.072098,69367.0,69366.0,0.07178349]
[1730593044597,0.072098,69367.0,69366.0,0.15997425]
[1730593045893,0.072098,69367.0,69366.0,0.08819076]
[1730593046295,0.072098,69367.0,69366.0,0.15991327]
[1730593046600,0.072099,69366.0,69365.0,0.07172233]
[1730593046799,0.0721,69365.0,69364.0,0.07172233]
[1730593046999,0.0721,69365.0,69364.0,0.16000754]
[1730593047193,0.0721,69365.0,69364.0,0.07172233]
[1730593047803,0.072101,69364.0,69363.0,0.3608]
[1730593047999,0.072101,69364.0,69363.0,0.44912202]
[1730593048198,0.072101,69364.0,69363.0,0.52085714]
[1730593048532,0.072101,69364.0,69363.0,0.3608]
[1730593048698,0.072101,69364.0,69363.0,0.43253512]
[1730593049002,0.072101,69364.0,69363.0,0.3608]
[1730593049388,0.072101,69364.0,69363.0,0.43253512]
[1730593049586,0.072101,69364.0,69363.0,0.3608]
[1730593050000,0.072101,69364.0,69363.0,0.43253512]
[1730593050200,0.072101,69364.0,69363.0,0.3608]
[1730593070414,0.072101,69364.0,69363.0,0.43253512]
[1730593071309,0.072101,69364.0,69363.0,0.07173512]
[1730593072006,0.072101,69364.0,69363.0,0.16025731]
[1730593072619,0.10045443,69364.0,69363.0,0.16025731]
[1730593072807,0.072101,69364.0,69363.0,0.16025731]
[1730593073414,0.072101,69364.0,69363.0,0.08852219]
[1730593074203,0.3608,69371.0,69363.0,0.08862613]
[1730593074404,0.3608,69371.0,69368.0,0.05747317]
[1730593074405,0.072096,69369.0,69368.0,0.05747317]
[1730593075420,0.072099,69366.0,69365.0,0.07184146]
[1730593076522,0.072099,69366.0,69365.0,0.16053517]
[1730593076723,0.072099,69366.0,69365.0,0.25148668]
[1730593076932,0.072099,69366.0,69365.0,0.08869371]
[1730593077107,0.072099,69366.0,69365.0,0.24696637]
[1730593078326,0.072099,69366.0,69365.0,0.16079371]
[1730593078820,0.072099,69366.0,69365.0,0.24696637]
[1730593081422,0.072099,69366.0,69365.0,0.16079371]
[1730593082030,0.072099,69366.0,69365.0,0.52159371]
[1730593082228,0.072099,69366.0,69365.0,0.60778412]
[1730593085278,0.072099,69366.0,69365.0,0.52159371]
[1730593086430,0.072099,69366.0,69365.0,0.52125174]
[1730593087830,0.072099,69366.0,69365.0,0.44915174]
[1730593089626,0.072099,69366.0,69365.0,0.44918755]
[1730593090928,0.072099,69366.0,69365.0,0.61711014]
[1730593091524,0.072099,69366.0,69365.0,0.68891007]
[1730593092934,0.072099,69366.0,69365.0,0.77986158]
[1730593095441,0.072099,69366.0,69365.0,0.77997224]
[1730593097250,0.072099,69366.0,69365.0,0.70817231]
[1730593101341,0.072099,69366.0,69365.0,0.34737231]
[1730593101547,0.072099,69366.0,69365.0,0.70817231]
[1730593102554,0.072099,69366.0,69365.0,0.6172208]
[1730593103050,0.16305051,69366.0,69365.0,0.16792259]
[1730593104250,0.59553051,69366.0,69365.0,0.21104196]
[1730593104447,0.59553051,69366.0,69362.0,0.05748874]
[1730593104448,0.0721,69365.0,69362.0,0.04312627]
[1730593104653,0.072106,69359.0,69358.0,0.05748874]
[1730593104852,0.072107,69358.0,69357.0,0.05748874]
[1730593105152,0.45371151,69359.0,69356.0,0.05748874]
[1730593105358,0.45175151,69359.0,69354.0,0.05748874]
[1730593105555,0.07211,69355.0,69354.0,0.05748874]
[1730593105744,0.072111,69354.0,69353.0,0.05748874]
[1730593105946,0.07211,69355.0,69352.0,0.05748874]
[1730593106142,0.07211,69355.0,69351.0,0.05748874]
[1730593106362,0.072113,69352.0,69351.0,0.05748874]
[1730593106854,0.072118,69348.0,69347.0,0.05748874]
[1730593107055,0.09095151,69348.0,69344.0,0.05748874]
[1730593107251,0.09095151,69348.0,69338.0,0.09095151]
[1730593107252,0.072122,69344.0,69341.0,0.05748874]
[1730593108262,0.072122,69344.0,69340.0,0.05748874]
[1730593108556,0.072122,69344.0,69338.0,0.09095151]
[1730593108557,0.09095151,69348.0,69339.0,0.05748874]
[1730593108853,0.09095151,69348.0,69338.0,0.09095151]
[1730593108854,0.3608,69345.0,69338.0,0.05748874]
[1730593109054,0.072127,69339.0,69338.0,0.05748874]
[1730593109259,0.072129,69337.0,69336.0,0.05748874]
[1730593109559,0.07213,69336.0,69335.0,0.05748874]
[1730593110054,0.07213,69336.0,69334.0,0.14844025]
[1730593110255,0.072131,69335.0,69334.0,0.09095151]
[1730593110450,0.072132,69334.0,69333.0,0.41828874]
[1730593110656,0.072132,69334.0,69333.0,0.3608]
[1730593110863,0.072132,69334.0,69333.0,0.45175151]
[1730593111452,0.45076,69345.0,69333.0,0.45175151]
[1730593111453,0.09,69340.0,69333.0,0.45175151]
[1730593111657,0.09,69340.0,69337.0,0.09095151]
[1730593112855,0.072128,69338.0,69337.0,0.09095151]
[1730593126307,0.072128,69338.0,69337.0,0.45175151]
[1730593127673,0.072128,69338.0,69337.0,0.3608]
[1730593130283,0.16307951,69338.0,69337.0,0.3608]
[1730593131374,0.09095151,69338.0,69331.0,0.10012982]
[1730593131678,0.072134,69332.0,69331.0,0.10012982]
[1730593132768,0.072134,69332.0,69331.0,0.15754315]
[1730593133169,0.072134,69332.0,69331.0,0.10012982]
[1730593135073,0.072134,69332.0,69331.0,0.26170169]
[1730593136073,0.072134,69332.0,69331.0,0.17198124]
[1730593136278,0.072134,69332.0,69331.0,0.18990491]
[1730593140176,0.072134,69332.0,69331.0,0.27609532]
[1730593140377,0.072134,69332.0,69331.0,0.18990491]
[1730593140680,0.072134,69332.0,69331.0,0.27609532]
[1730593141189,0.072134,69332.0,69331.0,0.18990491]
[1730593143987,0.072134,69332.0,69331.0,0.19000656]
[1730593145887,0.3608,69343.0,69332.0,0.072134]
[1730593146103,0.072126,69342.0,69341.0,0.14411572]
[1730593146289,0.072126,69342.0,69341.0,0.23383753]
[1730593146597,0.072126,69342.0,69341.0,0.26603753]
[1730593147096,0.072126,69342.0,69341.0,0.19404581]
[1730593147286,0.072126,69342.0,69341.0,0.26600644]
[1730593148488,0.072126,69342.0,69341.0,0.26589296]
[1730593149297,0.072126,69342.0,69341.0,0.17628463]
[1730593150309,0.072126,69342.0,69341.0,0.104324]
[1730593150905,0.072126,69342.0,69341.0,0.26586932]
[1730593151203,0.072126,69342.0,69341.0,0.19390869]
[1730593151603,0.072126,69342.0,69341.0,0.22500869]
[1730593151908,0.072126,69342.0,69341.0,0.29692649]
[1730593152289,0.072126,69342.0,69341.0,0.2073418]
[1730593152606,0.072126,69342.0,69341.0,0.29674683]
[1730593152800,0.072126,69342.0,69341.0,0.29672457]
[1730593153000,0.072126,69342.0,69341.0,0.2073418]
[1730593154100,0.072126,69342.0,69341.0,0.135424]
[1730593154296,0.072126,69342.0,69341.0,0.16247965]
[1730593154896,0.072126,69342.0,69341.0,0.32372046]
[1730593155102,0.072126,69342.0,69341.0,0.32369526]
[1730593155710,0.072126,69342.0,69341.0,0.25180266]
[1730593155904,0.072126,69342.0,69341.0,0.32368906]
[1730593156223,0.07428375,69346.0,69345.0,0.072121]
[1730593156404,0.07428375,69346.0,69345.0,0.16307251]
[1730593156605,0.07428375,69346.0,69345.0,0.32411209]
[1730593157411,0.07428375,69346.0,69345.0,0.59573626]
[1730593157604,0.07428375,69346.0,69345.0,0.68486894]
[1730593157795,0.07428375,69346.0,69345.0,0.59573626]
[1730593158413,0.07428375,69346.0,69345.0,0.52387251]
[1730593163305,0.07428375,69346.0,69345.0,0.16307251]
[1730593163532,0.072121,69345.0,69344.0,0.3608]
[1730593163899,0.072121,69345.0,69344.0,0.41825772]
[1730593164512,0.072121,69345.0,69344.0,0.3608]
[1730593165899,0.072121,69345.0,69339.0,0.05745772]
[1730593166101,0.072126,69340.0,69339.0,0.05745772]
[1730593168217,0.09095151,69344.0,69335.0,0.52388251]
[1730593168405,0.09095151,69340.0,69338.0,0.05749246]
[1730593168607,0.072127,69339.0,69338.0,0.05749246]
[1730593168915,0.072128,69338.0,69337.0,0.05749246]
[1730593169515,0.072128,69338.0,69336.0,0.05749246]
[1730593169809,0.072132,69334.0,69333.0,0.05749246]
[1730593170313,0.072134,69332.0,69331.0,0.05749246]
[1730593170808,0.072138,69328.0,69327.0,0.16309051]
[1730593171617,0.072138,69328.0,69327.0,0.52389051]
[1730593172003,0.072138,69328.0,69327.0,0.59575426]
[1730593173430,0.072138,69328.0,69327.0,0.52389051]
[1730593174919,0.072138,69328.0,69327.0,0.59575426]
[1730593175118,0.162128,69338.0,69333.0,0.072133]
[1730593175420,0.07213,69336.0,69335.0,0.09095151]
[1730593176302,0.07213,69336.0,69335.0,0.45175151]
[1730593176505,0.07213,69336.0,69335.0,0.50920232]
[1730593176908,0.09,69344.0,69335.0,0.54270302]
[1730593177108,0.072127,69340.0,69339.0,0.1295701]
[1730593177306,0.072122,69344.0,69343.0,0.072121]
[1730593177509,0.072122,69344.0,69343.0,0.16307251]
[1730593180919,0.00216375,69346.0,69343.0,0.09095151]
[1730593181120,0.00216375,69346.0,69345.0,0.072121]
[1730593181522,0.07428375,69346.0,69345.0,0.072121]
[1730593186326,0.00216375,69346.0,69345.0,0.072121]
[1730593189020,0.00216375,69346.0,69345.0,0.432921]
[1730593192025,0.00216375,69346.0,69345.0,0.072121]
[1730593192271,0.00216375,69346.0,69345.0,0.432921]
[1730593198831,0.00216375,69346.0,69345.0,0.496021]
[1730593199731,0.00216375,69346.0,69345.0,0.65653618]
[1730593200331,0.00216375,69346.0,69345.0,0.58470479]
[1730593201673,0.00216375,69346.0,69345.0,0.496021]
[1730593201930,0.00216375,69346.0,69345.0,0.58475675]
[1730593203534,0.00216375,69346.0,69345.0,0.67114681]
[1730593204234,0.00216375,69346.0,69345.0,0.58475675]
[1730593204632,0.00216375,69346.0,69345.0,0.6708601]
[1730593205334,0.00216375,69346.0,69345.0,0.58475675]
[1730593206427,0.00216375,69346.0,69345.0,0.69076538]
[1730593208641,0.072096,69369.0,69357.0,0.072106]
[1730593208829,0.072104,69361.0,69360.0,0.05747264]
[1730593209027,0.072105,69360.0,69359.0,0.3608]
[1730593209229,0.104005,69360.0,69359.0,0.3608]
[1730593210524,0.0319,69360.0,69356.0,0.0718408]
[1730593210730,0.072109,69356.0,69355.0,0.16279231]
[1730593211043,0.072109,69356.0,69355.0,0.09095151]
[1730593224852,0.3608,69357.0,69352.0,0.0718408]
[1730593225069,0.072109,69356.0,69355.0,0.0575068]
[1730593225248,0.07211,69355.0,69354.0,0.0575068]
[1730593225791,0.09095151,69356.0,69353.0,0.0575068]
[1730593226054,0.12195151,69356.0,69353.0,0.0575068]
[1730593226444,0.12195151,69356.0,69352.0,0.0575068]
[1730593226647,0.12195151,69356.0,69352.0,0.05751141]
[1730593226850,0.072112,69353.0,69352.0,0.05751141]
[1730593227157,0.072113,69352.0,69351.0,0.05750701]
[1730593227358,0.16306451,69352.0,69351.0,0.05750701]
[1730593227946,0.16306451,69352.0,69350.0,0.05750701]
[1730593227947,0.52351151,69352.0,69350.0,0.05750701]
[1730593228143,0.432915,69351.0,69349.0,0.05750701]
[1730593228353,0.072116,69350.0,69349.0,0.05750701]
[1730593229260,0.072117,69349.0,69348.0,0.05750701]
[1730593230953,0.072116,69350.0,69347.0,0.05750701]
[1730593231258,0.072119,69347.0,69346.0,0.05750701]
[1730593231457,0.07212,69346.0,69345.0,0.09095151]
[1730593237447,0.07212,69346.0,69345.0,0.14840351]
[1730593241354,0.07212,69346.0,69345.0,0.09095151]
[1730593253260,0.07212,69346.0,69345.0,0.25199098]
[1730593254261,0.07212,69346.0,69345.0,0.18015018]
[1730593256561,0.07212,69346.0,69345.0,0.09095151]
[1730593256762,0.07212,69346.0,69345.0,0.18015588]
[1730593259863,0.07212,69346.0,69345.0,0.08920437]
[1730593264659,0.1003122,69350.0,69345.0,0.08922858]
[1730593264975,0.072117,69349.0,69348.0,0.07194488]
[1730593266370,0.1003122,69350.0,69347.0,0.07194488]
[1730593266573,0.072118,69348.0,69347.0,0.07194488]
[1730593266770,0.072118,69348.0,69347.0,0.08924948]
[1730593269376,0.072118,69348.0,69347.0,0.16119501]
[1730593270067,0.072118,69348.0,69347.0,0.25214652]
[1730593270373,0.072118,69348.0,69347.0,0.25231999]
[1730593271771,0.072114,69352.0,69351.0,0.072114]
[1730593272078,0.36492325,69361.0,69351.0,0.27091562]
[1730593272289,0.43506725,69361.0,69360.0,0.14847854]
[1730593272484,0.07426725,69361.0,69360.0,0.16305651]
[1730593272679,0.072103,69363.0,69362.0,0.072102]
[1730593272978,0.072103,69363.0,69362.0,0.52385351]
[1730593273381,0.072103,69363.0,69362.0,0.58131759]
[1730593273682,0.072103,69363.0,69362.0,0.52385351]
[1730593275078,0.072103,69363.0,69362.0,0.45175151]
[1730593275285,0.072103,69363.0,69362.0,0.50915409]
[1730593276367,0.072103,69363.0,69362.0,0.45175151]
[1730593276772,0.072103,69363.0,69362.0,0.50915409]
[1730593277474,0.072103,69363.0,69362.0,0.45175151]
[1730593278281,0.072103,69363.0,69362.0,0.3608]
[1730593278678,0.072104,69361.0,69360.0,0.05740258]
[1730593278885,0.072103,69363.0,69357.0,0.05740258]
[1730593279073,0.072103,69362.0,69360.0,0.04303144]
[1730593279275,0.072104,69361.0,69360.0,0.04303144]
[1730593280085,0.072104,69361.0,69356.0,0.24285409]
[1730593280086,0.072103,69363.0,69359.0,0.04303144]
[1730593280294,0.072105,69360.0,69359.0,0.04303144]
[1730593283492,0.072103,69363.0,69358.0,0.04303144]
[1730593283680,0.072106,69359.0,69358.0,0.04303144]
[1730593285291,0.072106,69359.0,69358.0,0.04302881]
[1730593285482,0.072103,69363.0,69357.0,0.04302881]
[1730593285483,0.072107,69358.0,69357.0,0.04302881]
[1730593287198,0.072108,69357.0,69356.0,0.09095151]
[1730593290494,0.072103,69363.0,69355.0,0.05740258]
[1730593290796,0.072109,69356.0,69355.0,0.05740258]
[1730593291297,0.07211,69355.0,69354.0,0.02804394]
[1730593291491,0.072111,69354.0,69353.0,0.45175151]
[1730593291701,0.072111,69354.0,69353.0,0.09095151]
[1730593291888,0.072111,69354.0,69353.0,0.11875366]
[1730593292080,0.072111,69354.0,69353.0,0.17615415]
[1730593292287,0.072111,69354.0,69353.0,0.05740049]
[1730593292493,0.09095151,69354.0,69351.0,0.04305933]
[1730593292693,0.09095151,69354.0,69348.0,0.04305933]
[1730593292694,0.072117,69349.0,69348.0,0.04305933]
[1730593293695,0.072118,69348.0,69347.0,0.23728111]
[1730593294490,0.072118,69348.0,69347.0,0.19422178]
[1730593294692,0.072118,69348.0,69347.0,0.23728111]
[1730593296297,0.16306951,69348.0,69347.0,0.19422178]
[1730593296497,0.95646951,69348.0,69347.0,0.19422178]
[1730593297200,0.52386951,69348.0,69347.0,0.19422178]
[1730593302208,0.52386951,69348.0,69347.0,0.12006878]
[1730593310316,0.16306951,69348.0,69347.0,0.12006878]
[1730593310520,0.52386951,69348.0,69347.0,0.12006878]
[1730593315318,0.16306951,69348.0,69347.0,0.12006878]
[1730593315615,0.52386951,69348.0,69347.0,0.12006878]
[1730593318110,0.16306951,69348.0,69347.0,0.12006878]
[1730593318312,0.52386951,69348.0,69347.0,0.12006878]
[1730593324420,0.52386951,69348.0,69341.0,0.05740049]
[1730593324421,0.3608,69348.0,69346.0,0.04305933]
[1730593324620,0.072119,69347.0,69346.0,0.04305933]
[1730593325323,0.072122,69344.0,69343.0,0.05740049]
[1730593325524,0.162082,69344.0,69343.0,0.05740049]
[1730593325723,0.072122,69344.0,69343.0,0.05740049]
[1730593326125,0.072122,69344.0,69343.0,0.05756636]
[1730593326325,0.08996,69345.0,69341.0,0.09095151]
[1730593326626,0.072124,69342.0,69341.0,0.09095151]
[1730593327527,0.072124,69342.0,69341.0,0.11924544]
[1730593327826,0.072124,69342.0,69341.0,0.09095151]
[1730593329576,0.072124,69342.0,69341.0,0.1628603]
[1730593329736,0.08996,69345.0,69340.0,0.1628603]
[1730593329925,0.072125,69341.0,69340.0,0.07190879]
[1730593330117,0.072125,69341.0,69340.0,0.18058256]
[1730593330323,0.072125,69341.0,69340.0,0.25255723]
[1730593330924,0.072125,69341.0,69340.0,0.27153407]
[1730593331229,0.022225,69341.0,69340.0,0.77630007]
[1730593331429,0.072123,69343.0,69342.0,0.072122]
[1730593331631,0.072123,69343.0,69342.0,0.16175305]
[1730593331829,0.072114,69352.0,69342.0,0.08963105]
[1730593332130,0.072114,69352.0,69351.0,0.09095151]
[1730593332341,0.072114,69352.0,69351.0,0.14846556]
[1730593333229,0.072114,69352.0,69351.0,0.09095151]
[1730593333429,0.072114,69352.0,69351.0,0.14846556]
[1730593333842,0.072114,69352.0,69351.0,0.09095151]
[1730593334336,0.072114,69352.0,69351.0,0.15555151]
[1730593343439,0.072114,69352.0,69351.0,0.19863836]
[1730593345243,0.072114,69352.0,69351.0,0.15555151]
[1730593345445,0.072114,69352.0,69351.0,0.19863944]
[1730593345740,0.072114,69352.0,69351.0,0.10768793]
[1730593345944,0.072114,69352.0,69343.0,0.07192078]
[1730593345945,0.09095151,69353.0,69350.0,0.04308841]
[1730593346142,0.09095151,69353.0,69343.0,0.09095151]
[1730593346143,0.072116,69350.0,69349.0,0.04308841]
[1730593347538,0.072116,69350.0,69345.0,0.05751405]
[1730593347539,0.07212,69346.0,69345.0,0.05751405]
[1730593347847,0.072116,69350.0,69343.0,0.09095151]
[1730593347848,0.072122,69344.0,69343.0,0.09095151]
[1730593354243,0.072122,69344.0,69343.0,0.16287229]
[1730593355456,0.072122,69344.0,69343.0,0.25216181]
[1730593356236,0.072122,69344.0,69343.0,0.18024103]
[1730593363080,0.072122,69344.0,69343.0,0.09095151]
[1730593363353,0.072122,69344.0,69343.0,0.1802063]
[1730593364545,0.072122,69344.0,69343.0,0.5410063]
[1730593365347,0.072122,69344.0,69343.0,0.1802063]
[1730593365549,0.072122,69344.0,69343.0,0.5410063]
[1730593366653,0.072122,69344.0,69343.0,0.45175151]
[1730593368549,0.072122,69344.0,69343.0,0.54104612]
[1730593369348,0.072122,69344.0,69343.0,0.45175151]
[1730593369648,0.072122,69344.0,69343.0,0.09095151]
[1730593369849,0.072122,69344.0,69343.0,0.45175151]
[1730593373662,0.072122,69344.0,69343.0,0.62735528]
[1730593374659,0.072122,69344.0,69343.0,0.54105035]
[1730593379367,0.072122,69344.0,69343.0,0.62747706]
[1730593380754,0.072122,69344.0,69343.0,0.53652555]
[1730593380968,0.072122,69344.0,69343.0,0.54105035]
[1730593382282,0.072122,69344.0,69343.0,0.69960006]
[1730593382768,0.072122,69344.0,69343.0,0.69970085]
[1730593383662,0.072122,69344.0,69343.0,0.61327414]
[1730593386658,0.072122,69344.0,69343.0,0.71980015]
[1730593387765,0.072122,69344.0,69343.0,0.61327414]
[1730593388361,0.072122,69344.0,69343.0,0.25247414]
[1730593389777,0.072122,69344.0,69343.0,0.39233756]
[1730593391887,0.072122,69344.0,69343.0,0.22930341]
[1730593392058,0.162002,69344.0,69343.0,0.04006342]
[1730593392467,0.223902,69344.0,69343.0,0.04006342]
[1730593394575,0.223902,69344.0,69343.0,0.08324897]
[1730593395184,0.656542,69344.0,69343.0,0.08324897]
[1730593395476,0.686842,69344.0,69343.0,0.04006342]
[1730593396383,0.254202,69344.0,69343.0,0.04006342]
[1730593398874,0.615002,69344.0,69343.0,0.04006342]
[1730593399068,0.64247721,69344.0,69343.0,0.04006342]
[1730593402979,0.28167721,69344.0,69343.0,0.04006342]
[1730593403290,0.64247721,69344.0,69343.0,0.04006342]
[1730593404583,0.28167721,69344.0,69343.0,0.04006342]
[1730593404803,0.64247721,69344.0,69343.0,0.04006342]
[1730593406484,0.28167721,69344.0,69343.0,0.04006342]
[1730593406684,0.64247721,69344.0,69343.0,0.04006342]
[1730593408286,0.61217721,69344.0,69343.0,0.04006342]
[1730593410900,0.25137721,69344.0,69343.0,0.04006342]
[1730593411288,0.61217721,69344.0,69343.0,0.04006342]
[1730593411683,0.25137721,69344.0,69343.0,0.04006342]
[1730593411897,0.61217721,69344.0,69343.0,0.04006342]
[1730593413393,0.58057721,69344.0,69343.0,0.04006342]
[1730593414902,0.55027721,69344.0,69343.0,0.04006342]
[1730593419286,1.07386872,69344.0,69343.0,6.8e-07]
[1730593421087,1.37386872,69344.0,69343.0,6.8e-07]
[1730593421605,1.41424388,69344.0,69343.0,6.8e-07]
[1730593421898,1.05344388,69344.0,69343.0,6.8e-07]
[1730593422198,1.77504388,69344.0,69343.0,6.8e-07]
[1730593423399,0.072134,69332.0,69331.0,0.04318555]
[1730593423698,0.072138,69328.0,69327.0,0.04318555]
[1730593424003,0.07214,69327.0,69326.0,0.04318555]
[1730593424507,0.09095151,69328.0,69325.0,0.04318555]
[1730593424705,0.072135,69331.0,69325.0,0.04318555]
[1730593424706,0.52389251,69326.0,69325.0,0.04318555]
[1730593425003,0.3608,69326.0,69323.0,0.09095151]
[1730593425236,0.3608,69326.0,69323.0,0.14856723]
[1730593425237,0.072143,69324.0,69323.0,0.14856723]
[1730593425602,0.072143,69324.0,69323.0,0.09095151]
[1730593427002,0.36276,69332.0,69323.0,0.18190302]
[1730593427203,0.432934,69332.0,69331.0,0.09095151]
[1730593427503,0.432934,69332.0,69331.0,0.13412871]
[1730593427900,0.432934,69332.0,69331.0,0.09095151]
[1730593428306,0.072134,69332.0,69331.0,0.09095151]
[1730593428808,0.072134,69332.0,69331.0,0.14852111]
[1730593429518,0.00216409,69338.0,69331.0,0.45175151]
[1730593429707,0.00216409,69338.0,69337.0,0.49491782]
[1730593429903,0.07429209,69338.0,69337.0,0.50930911]
[1730593430213,0.07429209,69338.0,69337.0,0.45175151]
[1730593430704,0.07429209,69338.0,69337.0,0.3608]
[1730593432902,0.07429209,69338.0,69337.0,0.45175151]
[1730593440113,0.07429209,69338.0,69337.0,0.52388051]
[1730593440814,0.00216409,69338.0,69337.0,0.52388051]
[1730593442809,0.00216409,69338.0,69337.0,0.68493937]
[1730593443310,0.00216409,69338.0,69337.0,0.59576481]
[1730593444419,0.07429209,69338.0,69337.0,0.59576481]
[1730593445611,0.00216409,69338.0,69337.0,0.59576481]
[1730593445802,0.00216409,69338.0,69337.0,0.68671632]
[1730593446009,0.00216409,69338.0,69337.0,0.59576481]
[1730593447720,0.00216409,69338.0,69337.0,0.52388051]
[1730593450916,0.072121,69346.0,69345.0,0.072121]
[1730593451122,0.072121,69346.0,69345.0,0.52387251]
[1730593451519,0.161989,69357.0,69345.0,0.45175151]
[1730593451718,0.072116,69350.0,69349.0,0.072115]
[1730593451922,0.072116,69350.0,69349.0,0.16306651]
[1730593454633,0.072116,69350.0,69349.0,0.20612368]
[1730593454831,0.072116,69350.0,69349.0,0.16306651]
[1730593457526,0.072116,69350.0,69349.0,0.22048517]
[1730593458532,0.072116,69350.0,69349.0,0.16306651]
[1730593458843,0.072116,69350.0,69349.0,0.09095151]
[1730593459026,0.072116,69350.0,69345.0,0.3608]
[1730593459027,0.072119,69347.0,69346.0,0.16307151]
[1730593461835,0.072119,69347.0,69346.0,0.52387151]
[1730593464936,0.072119,69347.0,69346.0,0.45175151]
[1730593465232,0.072119,69347.0,69346.0,0.3608]
[1730593465429,0.072119,69347.0,69346.0,0.41836749]
[1730593468139,0.072119,69347.0,69346.0,0.05756749]
[1730593469438,0.11829505,69350.0,69341.0,0.59576081]
[1730593469690,0.11829505,69350.0,69347.0,0.05758655]
[1730593469835,0.072118,69348.0,69347.0,0.05758655]
[1730593474040,0.072119,69347.0,69346.0,0.05758655]
[1730593474339,0.104719,69347.0,69346.0,0.05758655]
[1730593486341,0.07212,69346.0,69345.0,0.09095151]
[1730593493459,0.07212,69346.0,69343.0,0.07201199]
[1730593493659,0.072122,69344.0,69343.0,0.07201199]
[1730593494460,0.07212,69346.0,69343.0,0.08942665]
[1730593494757,0.07212,69346.0,69344.0,0.07203141]
[1730593495154,0.072121,69345.0,69344.0,0.07203141]
[1730593497661,0.072122,69344.0,69343.0,0.07203141]
[1730593497956,0.07212,69346.0,69343.0,0.08942107]
[1730593498260,0.072121,69345.0,69344.0,0.07203412]
[1730593500363,0.072122,69344.0,69343.0,0.07203412]
[1730593500661,0.072122,69344.0,69338.0,0.3608]
[1730593500662,0.432922,69344.0,69341.0,0.07202297]
[1730593500866,0.09095151,69341.0,69340.0,0.07202297]
[1730593501164,0.072126,69340.0,69339.0,0.07202297]
[1730593501368,0.09095151,69341.0,69338.0,0.3608]
[1730593501369,0.072127,69339.0,69338.0,0.3608]
[1730593501562,0.072127,69339.0,69338.0,0.43278364]
[1730593501956,0.072127,69339.0,69338.0,0.52237502]
[1730593502566,0.072127,69339.0,69338.0,0.43278364]
[1730593503569,0.072127,69339.0,69338.0,0.3608]
[1730593505672,0.072128,69338.0,69336.0,0.07198364]
[1730593505871,0.072129,69337.0,69336.0,0.07198364]
[1730593506071,0.072129,69337.0,69336.0,0.16167542]
[1730593506283,0.072129,69337.0,69336.0,0.07198364]
[1730593506464,0.07213,69336.0,69335.0,0.07198364]
[1730593506777,0.07213,69336.0,69335.0,0.16168319]
[1730593508569,0.07213,69336.0,69335.0,0.07198364]
[1730593508875,0.07213,69336.0,69335.0,0.16163179]
[1730593509075,0.07213,69336.0,69335.0,0.07198364]
[1730593509574,0.072129,69337.0,69334.0,0.07198364]
[1730593509885,0.072131,69335.0,69334.0,0.07198364]
[1730593510073,0.072131,69335.0,69334.0,0.16167462]
[1730593510881,0.072132,69334.0,69333.0,0.07198364]
[1730593511084,0.072132,69334.0,69333.0,0.16169417]
[1730593511469,0.072132,69334.0,69333.0,0.07198364]
[1730593511976,0.072132,69334.0,69333.0,0.1616854]
[1730593512178,0.072132,69334.0,69333.0,0.07198364]
[1730593513379,0.072129,69337.0,69332.0,0.16293515]
[1730593513584,0.072133,69333.0,69332.0,0.16293515]
[1730593513779,0.072133,69333.0,69332.0,0.25264632]
[1730593515879,0.072133,69333.0,69332.0,0.16293515]
[1730593516382,0.072133,69333.0,69332.0,0.25267925]
[1730593516588,0.072133,69333.0,69332.0,0.25266968]
[1730593516983,0.072133,69333.0,69332.0,0.25271151]
[1730593517189,0.072133,69333.0,69332.0,0.16293515]
[1730593517398,0.072133,69333.0,69332.0,0.25271167]
[1730593517988,0.072133,69333.0,69332.0,0.25270375]
[1730593519083,0.072133,69333.0,69332.0,0.16293515]
[1730593519383,0.072133,69333.0,69332.0,0.2527254]
[1730593519690,0.072133,69333.0,69332.0,0.2527081]
[1730593521484,0.072133,69333.0,69332.0,0.18072446]
[1730593521790,0.072133,69333.0,69332.0,0.25264937]
[1730593522690,0.072133,69333.0,69332.0,0.25272813]
[1730593522891,0.072133,69333.0,69332.0,0.18080322]
[1730593527184,0.072133,69333.0,69332.0,0.18095156]
[1730593540484,0.072133,69333.0,69332.0,0.09000005]
[1730593540803,0.072133,69333.0,69332.0,0.09033302]
[1730593541493,0.072133,69333.0,69332.0,0.1623736]
[1730593543594,0.072133,69333.0,69332.0,0.07204058]
[1730593544196,0.072128,69338.0,69332.0,0.07204058]
[1730593544388,0.072128,69338.0,69337.0,0.05762393]
[1730593545598,0.072129,69337.0,69336.0,0.05762393]
[1730593545901,0.072133,69333.0,69332.0,0.07204058]
[1730593546401,0.11927623,69339.0,69331.0,0.07420387]
[1730593546587,0.072134,69332.0,69331.0,0.07420387]
[1730593546789,0.072134,69332.0,69331.0,0.16462558]